Cogmind - Beta 12 @@@ ROGUE MODE // 2024.01.25 @ 01:51:00 Player: Jiyva Result: Self-destructed Performance ------------- Evolutions (1) 500 Regions Visited (2) 400 Robots Destroyed (15) 75 Value Destroyed (346) 346 Prototype IDs (0) 0 Alien Tech Used (0) 0 Bonus (0) 0 TOTAL SCORE: 1321 Bonus ------- None Cogmind --------- Core Integrity 265/400 Matter 264/300 Energy 100/100 System Corruption 0% Temperature Cool (0) Movement Core (100) Ox1 Location -9/Materials Parts ------- > --- POWER (1) -------- (None) > --- PROPULSION (2) --- (None) > --- UTILITY (4) ------ ECM Suite > --- WEAPON (2) ------- Light Cannon > --- INVENTORY (5) ---- Ion Engine Weight Redist. System Light Armor Plating Peak State ------------ > --- POWER ------------ Improved Ion Engine > --- PROPULSION ------- Compact Wheel Compact Wheel > --- UTILITY ---------- Heat Sink Weight Redist. System Targeting Computer Light Armor Plating > --- WEAPON ----------- Light EM Pulse Cannon Grenade Launcher > --- INVENTORY -------- Ion Engine Wheel Light Cannon [Rating: 12] Favorites ----------- Power Ion Engine Engine Ion Engine Propulsion Compact Wheel Wheel Compact Wheel Utility Terrain Scanner Device Terrain Scanner Processor Targeting Computer Protection Light Armor Plating Weapon Medium Laser Energy Gun Medium Laser Energy Cannon Light EM Pulse Cannon Ballistic Gun Light Assault Rifle Ballistic Cannon Light Cannon Launcher Grenade Launcher Build | -11 -10 -9 ------- Run | Jun Mat Mat Slots Evolved 2 | . . 2 Power . | . . . Propulsion . | . . . Utility 2 | . . 2 Weapon . | . . . Parts Attached 30 | 5 13 12 Power 3 | 1 1 1 Engine 3 | 1 1 1 Core . | . . . Reactor . | . . . Propulsion 5 | 2 1 2 Treads . | . . . Leg . | . . . Wheel 5 | 2 1 2 Hover . | . . . Flight . | . . . Utility 7 | . 3 4 Device 4 | . 2 2 Storage . | . . . Processor 1 | . 1 . Hackware . | . . . Protection 2 | . . 2 Artifact . | . . . Weapon 15 | 2 8 5 Energy Gun 5 | 1 3 1 Energy Cannon 1 | . . 1 Ballistic Gun 2 | 1 1 . Ballistic Cannon 2 | . . 2 Launcher 5 | . 4 1 Special Weapon . | . . . Impact Weapon . | . . . Slashing Weapon . | . . . Piercing Weapon . | . . . Special Melee Weapon . | . . . Unidentified Prototypes . | . . . Parts Lost 10 | . 1 9 Power 2 | . 1 1 Propulsion 3 | . . 3 Utility 3 | . . 3 Weapon 2 | . . 2 Highest Loss Streak 8 | . 1 8 To Critical Strikes . | . . . Average Slot Usage (%) 84 | . 84 85 Engine 12 | . 14 10 Wheel 25 | . 27 21 Device 14 | . 12 18 Processor 4 | . 1 11 Protection 2 | . . 6 Energy Gun 9 | . 14 . Energy Cannon 3 | . . 9 Ballistic Gun 5 | . 6 2 Launcher 5 | . 6 2 Naked Turns . | . . . Heaviest Build 20 | 8 11 20 Greatest Support 38 | 32 32 38 Greatest Overweight (x) . | . . . Average Overweight (x) . | . . . Largest Inventory Capacity 5 | 5 5 5 Average Capacity 5 | 5 5 5 Most Carried 5 | 2 5 5 Average Carried 4 | 1 4 4 Final Capacity 5 | 5 5 5 Final Carried 4 | 2 4 3 Class Distribution -------------------- 100% | Mutant Dominant Class ---------------- Mutant | -10/Materials Mutant | -9/Materials Resources | -11 -10 -9 ----------- Run | Jun Mat Mat Matter Collected 469 | 177 173 119 Remotely . | . . . Salvage Created 389 | . 211 178 Parts 33 | . 16 17 Haulers Intercepted . | . . . Recyclers Shooed . | . . . Parts Field Recycled . | . . . Retrieved Matter . | . . . Parts Self-Destructed . | . . . Prevented . | . . . Kills | -11 -10 -9 ------- Run | Jun Mat Mat Combat Hostiles Destroyed 14 | . 8 6 Guns 5 | . 5 . Cannons 6 | . . 6 AOE 3 | . 3 . Classes Destroyed 4 | . 3 1 Watcher 1 | . 1 . Swarmer 7 | . 3 4 Grunt 5 | . 5 . Sentry 2 | . . 2 Best Kill Streak 6 | . 6 4 Combat Bots Only 6 | . 6 4 Max Kills in Single Turn 2 | . 2 1 Gunslinging . | . . . Exploded 2 | . 2 . Melee . | . . . Uniques/NPCs Destroyed . | . . . Combat | -11 -10 -9 -------- Run | Jun Mat Mat Damage Taken 920 | . 256 664 Core 179 | . 44 135 Absorbed by Shields . | . . . Core Remaining (%) 91 | 100 82 . Volleys Fired 44 | . 24 20 Largest 2 | . 2 1 Hottest 100 | . 100 56 Shots Fired 57 | . 37 20 Gun 34 | . 34 . Cannon 20 | . . 20 Launcher 3 | . 3 . Special . | . . . Kinetic 16 | . 13 3 Thermal 21 | . 21 . Explosive 3 | . 3 . Electromagnetic 17 | . . 17 Robot Hit Streak 11 | . 10 11 Robot Miss Streak 5 | . 4 5 Penetration Max . | . . . Secondary Targets . | . . . Shots Hit Robots 34 | . 23 11 Core Hits 25 | . 18 7 Critical Kills . | . . . Critical Parts Destroyed . | . . . Critical Strikes 1 | . 1 . Burn 1 | . 1 . Melee Attacks . | . . . Impact . | . . . Slashing . | . . . Piercing . | . . . Sneak Attacks . | . . . Combat Hostiles . | . . . Follow-up Attacks . | . . . Damage Inflicted 653 | . 446 207 Guns 236 | . 236 . Cannons 207 | . . 207 Explosions 210 | . 210 . Melee . | . . . Ramming . | . . . Kinetic 111 | . 73 38 Thermal 163 | . 163 . Explosive 210 | . 210 . Electromagnetic 169 | . . 169 Impact . | . . . Slashing . | . . . Piercing . | . . . Highest Corruption . | . . . Average Corruption . | . . . Corruption Purged . | . . . Corruption Blocked . | . . . Overload Shots . | . . . Overflow Damage 8 | . 8 . Projectiles . | . . . Explosions 8 | . 8 . Melee . | . . . Knockbacks . | . . . Impact . | . . . Kinetic . | . . . Secondary . | . . . Self-Inflicted Damage . | . . . Shots . | . . . Rammed . | . . . Targets Rammed . | . . . Kicked . | . . . Crushed . | . . . Highest Temperature 169 | . 169 20 Average Temperature 52 | . 58 13 Received Heat Transfer 360 | . 102 258 Siege Activations . | . . . Robots Corrupted . | . . . Combat Hostiles . | . . . Parts Fried 1 | . . 1 Impact Corruptions . | . . . Robots Melted . | . . . Combat Hostiles . | . . . Parts Melted 1 | . 1 . Heat Transferred 555 | . 555 . Parts Sabotaged . | . . . Parts Stolen . | . . . Parts Stripped . | . . . Power Chain Reactions . | . . . Missiles Intercepted . | . . . Alert | -11 -10 -9 ------- Run | Jun Mat Mat Peak Influence 210 | . 156 210 Initial 65 | . . 65 Average 83 | . 75 123 Maximum Alert Level 1 | . . 1 Low Security (%) 96 | 100 100 88 Level 1 3 | . . 11 Level 2 . | . . . Level 3 . | . . . Level 4 . | . . . Level 5 . | . . . High Security . | . . . Max Security . | . . . Squads Dispatched 3 | . 3 . Investigation 1 | . 1 . Extermination . | . . . Reinforcement 2 | . 2 . Assault . | . . . Garrison . | . . . Intercept . | . . . Searches Triggered . | . . . Construction Impeded . | . . . Haulers Reinforced . | . . . Active Scanning Responses . | . . . Cargo Convoy Interrupts . | . . . Stealth | -11 -10 -9 --------- Run | Jun Mat Mat Distress Signals 2 | . . 2 Communications Jammed . | . . . Distress Signals . | . . . Times Spotted 28 | . 16 12 Peak Tracking Total 5 | . 5 4 Tactical Retreats 3 | . 1 2 Traps | -11 -10 -9 ------- Run | Jun Mat Mat Traps Triggered 2 | . 2 . Indirectly . | . . . Trap Hack Attempts . | . . . Triggered . | . . . Disarmed . | . . . Reprogrammed . | . . . Reused . | . . . Traps Extracted . | . . . Installed . | . . . Triggered . | . . . Machines | -11 -10 -9 ---------- Run | Jun Mat Mat Machines Disabled . | . . . Max in Single Turn . | . . . Machines Repaired . | . . . Machines Sabotaged . | . . . Overloaded Fab Kills . | . . . Hacking | -11 -10 -9 --------- Run | Jun Mat Mat Machines Accessed 3 | . 3 . Terminals 2 | . 2 . Fabricators . | . . . Repair Stations . | . . . Recycling Units 1 | . 1 . Scanalyzers . | . . . Garrison Access . | . . . Total Hacks 6 | . 6 . Successful 2 | . 2 . Failed 4 | . 4 . Catastrophic 1 | . 1 . Database Lockouts . | . . . Manual . | . . . Terminals 5 | . 5 . Fabricators . | . . . Repair Stations . | . . . Recycling Units 1 | . 1 . Scanalyzers . | . . . Garrison Access . | . . . Terminal Hacks 1 | . 1 . Surveillance Status 1 | . 1 . Fabricator Hacks . | . . . Repair Station Hacks . | . . . Recycling Unit Hacks 1 | . 1 . Report Inventory 1 | . 1 . Scanalyzer . | . . . Garrison Access Hacks . | . . . Unauthorized Hacks . | . . . Terminals . | . . . Fabricators . | . . . Repair Stations . | . . . Recycling Units . | . . . Scanalyzers . | . . . Garrison Access . | . . . Data Cores Recovered . | . . . Used . | . . . Hacking Detections 1 | . 1 . Full Trace Events . | . . . Feedback Events . | . . . Feedback Blocked . | . . . Robot Schematics Acquired . | . . . Robots Built . | . . . Authchips . | . . . Time . | . . . Total Robot Build Rating . | . . . Part Schematics Acquired . | . . . Parts Built . | . . . Authchips . | . . . Time . | . . . Total Part Build Rating . | . . . Parts Repaired . | . . . Time . | . . . Parts Recycled . | . . . Recycled Matter . | . . . Retrieved Matter . | . . . Retrieved Components . | . . . Parts Scanalyzed . | . . . Part Schematics Acquired . | . . . Parts Damaged . | . . . Bothacking | -11 -10 -9 ------------ Run | Jun Mat Mat Used RIF Installer . | . . . Robots Hacked . | . . . Non-combat . | . . . Combat . | . . . Robot Hacks Applied . | . . . Relay Couplers Released . | . . . Fabnet Peak Effective % . | . . . Robots Rewired . | . . . Allies Hacked . | . . . Hacks Repelled . | . . . Allies | -11 -10 -9 -------- Run | Jun Mat Mat Total Allies . | . . . Largest Group . | . . . Highest-Rated Group . | . . . Highest-Rated Ally . | . . . Total Orders . | . . . Ally Attacks . | . . . Total Damage . | . . . Kills . | . . . Allies Corrupted . | . . . Allies Melted . | . . . Intel | -11 -10 -9 ------- Run | Jun Mat Mat Robot Analysis Total . | . . . Derelict Logs Recovered . | . . . Drone Launches . | . . . Drone Recoveries . | . . . Exploration | -11 -10 -9 ------------- Run | Jun Mat Mat Turns Passed 858 | 74 524 260 Spaces Moved 571 | 67 385 119 Core 3 | 3 . . Treads . | . . . Legs . | . . . Wheels 568 | 64 385 119 Hover . | . . . Flight . | . . . Fastest Speed 50 | 50 100 90 Average Speed 98 | 97 100 96 Slowest Speed 100 | 100 100 100 Overloaded Moves . | . . . Propulsion Burnouts . | . . . Robots Hopped . | . . . Cave-ins Triggered . | . . . Exploration Rate (%) 22 | 3 46 19 Regions Visited 2 Branch Regions . Pre-discovered Areas . | . . . Known Exits Taken . | . . . Unknown Exits Taken 2 | 1 1 . Scrap Searched . | . . . Spaces Dug . | . . . Terrain Destroyed 24 | . 24 . Melee . | . . . Projectile . | . . . AOE 24 | . 24 . Terrain Rammed . | . . . Walls Destroyed . | . . . Machines Disabled . | . . . Actions | -11 -10 -9 --------- Run | Jun Mat Mat Total 801 | 73 485 243 Wait 143 | . 58 85 Move 569 | 66 384 119 Hop . | . . . Pick Up 6 | 2 4 . Fast Attach 15 | 5 5 5 Attach 4 | . 2 2 Detach 4 | . 1 3 Swap 11 | . 6 5 Drop 5 | . 1 4 Fire 44 | . 24 20 Melee . | . . . Ram . | . . . Kick . | . . . Crush . | . . . Escape Stasis . | . . . Rewire . | . . . Trap . | . . . Miscellaneous . | . . . Route ------- -11/Junkyard -10/Materials -9/Materials (discovered 1 exit: [*Min]) History --------- Turn | Location | Event 9 | -11/Junkyard | Discovered new exit (range 16) 75 | -11/Junkyard | Entered Materials 307 | -10/Materials | Build established: Mutant 558 | -10/Materials | Discovered new exit (range 16) 599 | -10/Materials | Entered another Materials area 599 | -9/Materials | Evolved 2 slots: Utility x2 748 | -9/Materials | Discovered new exit (range 13) 859 | -9/Materials | Self-destructed Last Messages --------------- 00706_ A-02 Transporter sends out distress signal. 00724_ Grenade Launcher destroyed. 00729_ Heat Sink fried. 00729_ Y-45 Defender destroyed. 00737_ Acquired 60 matter. 00748_ EXIT=FOUND 00774_ S-10 Pest destroyed. 00797_ Wheel destroyed. 00797_ S-10 Pest destroyed. 00807_ Heat Sink destroyed. 00813_ K-01 Serf collects debris. 00831_ Imp. Ion Engine destroyed. 00833_ Lgt. Armor Plating destroyed. 00839_ Lgt. EM Pulse Cannon destroyed. 00841_ Com. Wheel destroyed. 00844_ R-06 Scavenger collects Flight Unit. 00851_ Targeting Computer destroyed. 00853_ Com. Wheel destroyed. 00856_ K-01 Serf collects debris. 00858_ W-16 Scout sends out distress signal. Map ----- +----------------------------------------------------+ | # #????????????????????????? | | ############ # #????????????????????????? | | ######## # !!] #????????????????????????? | | # # # !!] #????????????????????????? | | # # # ] #????????????????????????? | | [ # # # #????????????????????????? | | # + + [ #????????????????????????? | | # # # [*! #????????????????????????? | | # """ # # [ [ #????????????????????????? | | # """ # ## #######????????????????????????? | | * # """ # ####??????????????????????????????? | | ############ #?????????????????????????????????? | | ???????????# #?????????????????????????????????? | | ???????????# #?????????????????????????????????? | | ############ #?????????????????????????????????? | | [ #?????????????????????????????????? | | #?????????????????????????????????? | | #?###########?????????????????????? | | #?# """ """ #?????????????????????? | | ## #?# """ """ #?????????????????????? | | ?# """ """ #?# """ """ #?????????????????????? | | ?# """ """ ### #?????????????????????? | | ?# """ """ ## #?????????????????????? | | ?# #?# #?????????????????????? | | ?# #?# =*= #?????????????????????? | | ?# """ #?# g %%@ #?????????????????????? | | ?# """ #?#+#####g###?????????????????????? | | ?# """ [ ### ###% [ #?????????????????????? | | ?# "T" ![= ????????????????? | | kT /???????????? | | ## w # ??????????? | | ?# ######+#####+## ####### #???????????? | | ?###+#??????????? ## ##???????? #???????????? | | ???????????????? ? ## #??????????????????????? | | ??????????????? ?? ## #??????????????????????? | | ?????????????? ????## #??????????????????????? | | ?????????????? ??????# #??????????????????????? | | ?????????????????????? ??????????????????????? | | ?????????????????????? ??????????????????????? | | ?????????????????????? ??????????????????????? | | ?????????????????????? < ??????????????????????? | | ?????????????????????????????????????????????????? | | ?????????????????????????????????????????????????? | | ?????????????????????????????????????????????????? | | ?????????????????????????????????????????????????? | | ?????????????????????????????????????????????????? | | ?????????????????????????????????????????????????? | | ?????????????????????????????????????????????????? | | ?????????????????????????????????????????????????? | | ?????????????????????????????????????????????????? | +----------------------------------------------------+ Best States ------------- Heat Dissipation 38 Energy Generation 12 Energy Capacity 265 Matter Stores 261 Matter Capacity 300 Sight Range 16 Terrain Scan Range 14 Terrain Scan Density 10 ECM Strength 1 Additional Mass Support 6 Armor Coverage 150 Evasion (%) 42 Targeting Accuracy 5 Item Schematics ----------------- None Robot Schematics ------------------ None Fabricated ------------ Nothing Alien Tech Used ----------------- None Achievements -------------- None Challenges ------------ None Game ------ Seed SwarmControlNullifier Manual? 0 Play Time 00:21:02 Cumulative 116.6 hours Start 2024.01.25 @ 01:30:58 End 2024.01.25 @ 01:51:00 Sessions 1 Manual Loads 0 Difficulty Rogue Special Mode None Game No. 41 Rogue 41 Adventurer 0 Explorer 0 Win Type - Total 0 Types 0/0/0/0/0/0/0/0/0 Lore% 18 Gallery% 46 Achievement% 31 Wizard Run 0 Options --------- ASCII 1 Keyboard 1 Movement Vi Keybinds 1 Fullscreen 1 Font 18/X11 Map View 76x50 Tactical HUD 1 Map Filters NONE Filters NONE Steam 1 RUN: 1f3ef252-3788-4bc4-9c71-27d14a854af6